[Event "30th Abu Dhabi Festival A-Open 2024"]
[Site "Abu Dhabi"]
[Date "2024.08.18"]
[Round "3.10"]
[White "Imomkuzieva, Nilufarkhon"]
[Black "Wen, Gehua"]
[Result "0-1"]
[ECO "B12"]
[WhiteElo "1955"]
[BlackElo "2119"]
[Annotator "ChessBase"]
[PlyCount "86"]
[EventDate "2024.08.15"]
[EventType "swiss"]
[EventCountry "UAE"]
[SourceTitle "playchess.com"]
[Source "ChessBase"]
[SourceQuality "1"]
[TimeControl "5400+30"]

1. e4 {[%emt 0:00:06]} c6 {[%emt 0:00:05]} 2. d4 {[%emt 0:00:04]} d5 {[%emt 0:00:04]} 3. e5 {[%emt 0:00:03]} Bf5 {[%emt 0:00:05]} 4. Nf3 {[%emt 0:00:04]} e6 {[%emt 0:00:07]} 5. Be2 {[%emt 0:00:06]} c5 {[%emt 0:00:51]} 6. Be3 {[%emt 0:00:23]} cxd4 {[%emt 0:03:19]} 7. Bxd4 {[%emt 0:01:05]} Nc6 {[%emt 0:00:43]} 8. O-O {[%emt 0:00:19]} Nge7 {[%emt 0:02:51]} 9. c3 {[%emt 0:04:50]} Bg4 {[%emt 0:02:05]} 10. Na3 {[%emt 0:04:55]} Ng6 {[%emt 0:06:09]} 11. Re1 {[%emt 0:03:11]} Bxa3 {[%emt 0:15:19]} 12. bxa3 {[%emt 0:00:43]} Qc7 {[%emt 0:00:10]} 13. Nd2 {[%emt 0:13:39]} Bxe2 {[%emt 0:06:52]} 14. Qxe2 {[%emt 0:00:06]} O-O {[%emt 0:00:17]} 15. Nb3 {[%emt 0:03:20]} Rfc8 {[%emt 0:02:15]} 16. Qe3 {[%emt 0:02:20]} Na5 {[%emt 0:01:19]} 17. f4 {[%emt 0:02:46]} Nc4 {[%emt 0:00:36]} 18. Qc1 {[%emt 0:00:07]} b6 {[%emt 0:02:53]} 19. Rb1 {[%emt 0:01:30]} Qd7 {[%emt 0:08:57]} 20. Na1 {[%emt 0:00:28]} Ne7 {[%emt 0:04:44]} 21. Nc2 {[%emt 0:02:40]} Qa4 {[%emt 0:00:49]} 22. Rb4 {[%emt 0:01:04]} Qa5 {[%emt 0:01:28]} 23. Rb3 {[%emt 0:02:13]} Rc7 {[%emt 0:03:23]} 24. g4 {[%emt 0:02:04]} Qa4 {[%emt 0:02:25]} 25. Nb4 {[%emt 0:17:54]} Na5 {[%emt 0:04:06]} 26. Rb1 {[%emt 0:00:37]} Nac6 {[%emt 0:00:14]} 27. Bf2 {[%emt 0:02:38]} Rac8 {[%emt 0:01:38]} 28. Re3 {[%emt 0:08:03]} a5 {[%emt 0:07:02]} 29. Nxc6 {[%emt 0:04:03]} Rxc6 {[%emt 0:00:41]} 30. Rd3 {[%emt 0:01:49]} Qe4 {[%emt 0:08:33]} 31. Qd2 {[%emt 0:05:54]} Ng6 {[%emt 0:05:26]} 32. Bg3 {[%emt 0:02:57]} Rxc3 {[%emt 0:00:20]} 33. Rxc3 {[%emt 0:00:12]} Qxb1+ {[%emt 0:00:05]} 34. Be1 {[%emt 0:00:15]} Rxc3 {[%emt 0:00:57]} 35. Qxc3 {[%emt 0:00:05]} h6 {[%emt 0:00:03]} 36. f5 {[%emt 0:03:27]} exf5 {[%emt 0:00:20]} 37. gxf5 {[%emt 0:00:09]} Qxf5 {[%emt 0:00:20]} 38. Bg3 {[%emt 0:00:05]} Qb1+ {[%emt 0:01:08]} 39. Kg2 {[%emt 0:00:04]} Qxa2+ {[%emt 0:00:09]} 40. Kh3 {[%emt 0:00:13]} Qc4 {[%emt 0:00:12]} 41. Qf3 {[%emt 0:00:41]} d4 {[%emt 0:00:50]} 42. Qe4 {[%emt 0:00:16]} Qf1+ {[%emt 0:01:40]} 43. Kg4 {[%emt 0:00:05]} d3 {[%emt 0:00:23]} 0-1

[Event "30th Abu Dhabi Festival A-Open 2024"]
[Site "Abu Dhabi"]
[Date "2024.08.18"]
[Round "3.11"]
[White "Sham R"]
[Black "Bhuvan Krishna Prasanth"]
[Result "1-0"]
[ECO "C47"]
[WhiteElo "2103"]
[BlackElo "1940"]
[Annotator "ChessBase"]
[PlyCount "141"]
[EventDate "2024.08.15"]
[EventType "swiss"]
[EventCountry "UAE"]
[SourceTitle "playchess.com"]
[Source "ChessBase"]
[SourceQuality "1"]
[TimeControl "5400+30"]

1. e4 {[%emt 0:00:03]} e5 {[%emt 0:03:18]} 2. Nf3 {[%emt 0:00:22]} Nc6 {[%emt 0:00:07]} 3. Nc3 {[%emt 0:00:05]} Nf6 {[%emt 0:00:07]} 4. a4 {[%emt 0:00:02]} a5 {[%emt 0:00:27]} 5. Bb5 {[%emt 0:02:35]} Bb4 {[%emt 0:00:25]} 6. O-O {[%emt 0:01:20]} O-O {[%emt 0:02:19]} 7. Nd5 {[%emt 0:00:22]} Nxd5 {[%emt 0:29:27]} 8. exd5 {[%emt 0:00:34]} e4 {[%emt 0:00:16]} 9. Ne1 {[%emt 0:21:36]} Ne7 {[%emt 0:01:44]} 10. c3 {[%emt 0:02:54]} Bd6 {[%emt 0:00:29]} 11. Bc4 {[%emt 0:01:40]} c6 {[%emt 0:00:43]} 12. d3 {[%emt 0:07:16]} cxd5 {[%emt 0:02:58]} 13. Ba2 {[%emt 0:00:47]} Qc7 {[%emt 0:00:22]} 14. g3 {[%emt 0:01:25]} b6 {[%emt 0:03:04]} 15. Bg5 {[%emt 0:03:06]} f6 {[%emt 0:00:54]} 16. Bd2 {[%emt 0:06:07]} Kh8 {[%emt 0:02:31]} 17. Ng2 {[%emt 0:04:28]} Ba6 {[%emt 0:03:25]} 18. Nf4 {[%emt 0:01:08]} Bxf4 {[%emt 0:02:52]} 19. Bxf4 {[%emt 0:00:03]} Qc6 {[%emt 0:00:46]} 20. dxe4 {[%emt 0:13:22]} dxe4 {[%emt 0:02:37]} 21. Re1 {[%emt 0:02:16]} d5 {[%emt 0:01:11]} 22. Qd4 {[%emt 0:00:44]} f5 {[%emt 0:13:03]} 23. Rad1 {[%emt 0:03:36]} Bb7 {[%emt 0:06:20]} 24. Bg5 {[%emt 0:05:50]} Qc7 {[%emt 0:03:59]} 25. Bf4 {[%emt 0:05:29]} Qc6 {[%emt 0:02:58]} 26. h4 {[%emt 0:00:28]} h6 {[%emt 0:02:17]} 27. h5 {[%emt 0:00:08]} Kh7 {[%emt 0:00:19]} 28. Bb3 {[%emt 0:05:29]} Rad8 {[%emt 0:01:28]} 29. Rd2 {[%emt 0:02:00]} Bc8 {[%emt 0:02:39]} 30. Red1 {[%emt 0:01:49]} Be6 {[%emt 0:00:29]} 31. Qe5 {[%emt 0:00:49]} g5 {[%emt 0:01:20]} 32. Be3 {[%emt 0:06:56]} f4 {[%emt 0:00:29]} 33. Bd4 {[%emt 0:00:01]} Nf5 {[%emt 0:00:35]} 34. c4 {[%emt 0:01:00]} Qd6 {[%emt 0:06:09]} 35. cxd5 {[%emt 0:01:20]} Qxe5 {[%emt 0:00:25]} 36. Bxe5 {[%emt 0:00:01]} Bf7 {[%emt 0:00:24]} 37. Rc1 {[%emt 0:00:57]} e3 {[%emt 0:01:09]} 38. fxe3 {[%emt 0:00:05]} fxe3 {[%emt 0:00:03]} 39. Rd3 {[%emt 0:00:28]} Rfe8 {[%emt 0:01:19]} 40. Bc7 {[%emt 0:00:42]} Rc8 {[%emt 0:01:14]} 41. d6 {[%emt 0:00:56]} Nxd6 {[%emt 0:00:01]} 42. Bxf7 {[%emt 0:00:31]} Nxf7 {[%emt 0:00:01]} 43. Rd7 {[%emt 0:00:00]} e2 {[%emt 0:00:56]} 44. Kf2 {[%emt 0:00:52]} Kg8 {[%emt 0:01:09]} 45. Re1 {[%emt 0:00:01]} Ne5 {[%emt 0:01:36]} 46. Bxe5 {[%emt 0:00:02]} Rxe5 {[%emt 0:00:02]} 47. Rxe2 {[%emt 0:00:02]} Rxe2+ {[%emt 0:00:01]} 48. Kxe2 {[%emt 0:00:01]} Rc2+ {[%emt 0:00:01]} 49. Kf3 {[%emt 0:00:02]} Rxb2 {[%emt 0:00:08]} 50. Kg4 {[%emt 0:00:31]} Rb4+ {[%emt 0:01:49]} 51. Kf5 {[%emt 0:00:03]} Rxa4 {[%emt 0:00:01]} 52. Kg6 {[%emt 0:00:55]} Kf8 {[%emt 0:00:12]} 53. Kxh6 {[%emt 0:00:02]} Rg4 {[%emt 0:00:11]} 54. Rd3 {[%emt 0:00:16]} a4 {[%emt 0:02:17]} 55. Kg6 {[%emt 0:00:06]} Rc4 {[%emt 0:01:08]} 56. Rd8+ {[%emt 0:00:08]} Ke7 {[%emt 0:00:01]} 57. Ra8 {[%emt 0:00:12]} Rc6+ {[%emt 0:00:38]} 58. Kg7 {[%emt 0:00:04]} Rc3 {[%emt 0:01:17]} 59. h6 {[%emt 0:00:52]} Rxg3 {[%emt 0:00:07]} 60. h7 {[%emt 0:00:04]} Rh3 {[%emt 0:00:10]} 61. Rxa4 {[%emt 0:05:21]} Ke6 {[%emt 0:00:58]} 62. Rb4 {[%emt 0:00:27]} Kf5 {[%emt 0:01:15]} 63. Rb5+ {[%emt 0:00:28]} Kf4 {[%emt 0:00:10]} 64. Rb4+ {[%emt 0:00:00]} Kf5 {[%emt 0:00:16]} 65. Rxb6 {[%emt 0:00:12]} Rxh7+ {[%emt 0:00:35]} 66. Kxh7 {[%emt 0:00:01]} g4 {[%emt 0:00:15]} 67. Kh6 {[%emt 0:00:10]} g3 {[%emt 0:00:15]} 68. Rg6 {[%emt 0:00:45]} Kf4 {[%emt 0:00:10]} 69. Kh5 {[%emt 0:00:01]} Kf3 {[%emt 0:00:00]} 70. Kh4 {[%emt 0:00:01]} g2 {[%emt 0:00:02]} 71. Kh3 1-0

[Event "30th Abu Dhabi Festival A-Open 2024"]
[Site "Abu Dhabi"]
[Date "2024.08.18"]
[Round "3.12"]
[White "Yahya Shuaib Al Kaff"]
[Black "Barretto, Franz"]
[Result "0-1"]
[ECO "E92"]
[WhiteElo "1882"]
[BlackElo "2101"]
[Annotator "ChessBase"]
[PlyCount "78"]
[EventDate "2024.08.15"]
[EventType "swiss"]
[EventCountry "UAE"]
[SourceTitle "playchess.com"]
[Source "ChessBase"]
[SourceQuality "1"]
[TimeControl "5400+30"]

1. d4 {[%emt 0:08:03]} Nf6 {[%emt 0:00:06]} 2. c4 {[%emt 0:00:04]} g6 {[%emt 0:00:03]} 3. Nc3 {[%emt 0:00:05]} Bg7 {[%emt 0:00:05]} 4. e4 {[%emt 0:00:05]} d6 {[%emt 0:00:02]} 5. Be2 {[%emt 0:00:06]} O-O {[%emt 0:03:54]} 6. Be3 {[%emt 1:25:07]} Na6 {[%emt 0:07:32]} 7. Nf3 {[%emt 0:00:30]} e5 {[%emt 0:06:47]} 8. d5 {[%emt 0:00:30]} Ng4 {[%emt 0:06:18]} 9. Bg5 {[%emt 0:00:00]} f6 {[%emt 0:00:11]} 10. Bh4 {[%emt 0:01:00]} h5 {[%emt 1:10:32]} 11. h3 {[%emt 0:00:00]} Nh6 {[%emt 0:00:00]} 12. Nd2 {[%emt 0:00:00]} Nf7 {[%emt 0:00:00]} 13. Qc2 {[%emt 0:00:00]} Bh6 {[%emt 0:00:00]} 14. g4 {[%emt 0:02:00]} hxg4 {[%emt 0:00:00]} 15. hxg4 {[%emt 0:00:00]} Nb4 {[%emt 0:02:30]} 16. Qa4 {[%emt 0:00:00]} a5 {[%emt 0:00:30]} 17. a3 {[%emt 0:01:30]} Bd7 {[%emt 0:00:00]} 18. Nb5 {[%emt 0:00:30]} c6 {[%emt 0:00:00]} 19. axb4 {[%emt 0:00:00]} cxb5 {[%emt 0:00:00]} 20. Qd1 {[%emt 0:00:00]} Bxd2+ {[%emt 0:00:00]} 21. Qxd2 {[%emt 0:00:00]} g5 {[%emt 0:00:00]} 22. Bg3 {[%emt 0:00:00]} axb4 {[%emt 0:03:00]} 23. O-O {[%emt 0:00:00]} bxc4 {[%emt 0:00:00]} 24. Qxb4 {[%emt 0:00:00]} b5 {[%emt 0:00:00]} 25. Rxa8 Qxa8 {[%emt 0:00:00]} 26. f3 {[%emt 0:00:00]} Kg7 {[%emt 0:00:00]} 27. Rc1 {[%emt 0:00:00]} Rh8 {[%emt 0:00:00]} 28. Bf1 {[%emt 0:00:00]} Qa2 {[%emt 0:03:00]} 29. Bf2 {[%emt 0:00:00]} Ra8 {[%emt 0:00:00]} 30. Bb6 {[%emt 0:00:00]} Ra4 {[%emt 0:00:00]} 31. Qd2 {[%emt 0:00:09]} Qb3 {[%emt 0:00:00]} 32. Rc3 {[%emt 0:00:35]} Qb4 {[%emt 0:00:00]} 33. Qh2 {[%emt 0:01:15]} Ra2 {[%emt 0:00:00]} 34. Rc2 {[%emt 0:00:05]} Qb3 {[%emt 0:00:00]} 35. Qg2 {[%emt 0:00:38]} Ra6 {[%emt 0:00:00]} 36. Rc3 {[%emt 0:00:30]} Qd1 {[%emt 0:00:00]} 37. Qf2 {[%emt 0:00:28]} Ra1 {[%emt 0:00:00]} 38. Kg2 {[%emt 0:01:03]} Nh8 {[%emt 0:00:00]} 39. Qc2 {[%emt 0:02:55]} Qxf1+ {[%emt 0:00:00]} 0-1

[Event "30th Abu Dhabi Festival A-Open 2024"]
[Site "Abu Dhabi"]
[Date "2024.08.19"]
[Round "4.1"]
[White "Yeremyan, Alen"]
[Black "Sham R"]
[Result "1/2-1/2"]
[ECO "A46"]
[WhiteElo "2279"]
[BlackElo "2103"]
[Annotator "RC"]
[PlyCount "122"]
[EventDate "2024.08.15"]
[EventType "swiss"]
[EventCountry "UAE"]
[SourceTitle "playchess.com"]
[Source "ChessBase"]
[SourceQuality "1"]
[TimeControl "5400+30"]

1. d4 {[%emt 0:00:04]} Nf6 {[%emt 0:00:44]} 2. Bf4 {[%emt 0:00:40]} c5 {[%emt 0:00:22]} 3. e3 {[%emt 0:01:19]} e6 {[%emt 0:02:23]} 4. c3 {[%emt 0:02:10]} Nc6 {[%emt 0:00:34]} 5. Nf3 {[%emt 0:00:57]} Nh5 {[%emt 0:03:35]} 6. Bg5 {[%emt 0:03:23]} f6 {[%emt 0:00:31]} 7. Bh4 {[%emt 0:01:05]} g6 {[%emt 0:01:18]} 8. Be2 {[%emt 0:10:15]} d5 {[%emt 0:03:22]} 9. O-O {[%emt 0:00:22]} Ng7 {[%emt 0:01:02]} 10. c4 {[%emt 0:04:43]} Nf5 {[%emt 0:06:58]} 11. cxd5 {[%emt 0:01:28]} exd5 {[%emt 0:00:09]} 12. dxc5 {[%emt 0:03:47]} Nxh4 {[%emt 0:05:37]} 13. Nxh4 {[%emt 0:00:01]} Bxc5 {[%emt 0:00:31]} 14. Nc3 {[%emt 0:04:45]} Be6 {[%emt 0:02:51]} 15. Nf3 {[%emt 0:05:17]} Kf7 {[%emt 0:04:46]} 16. Rc1 {[%emt 0:00:38]} Bb6 {[%emt 0:05:19]} 17. Qa4 {[%emt 0:02:38]} Qe7 {[%emt 0:04:06]} 18. Nb5 {[%emt 0:02:37]} Rhd8 {[%emt 0:06:13]} 19. Nbd4 {[%emt 0:04:56]} Nxd4 {[%emt 0:03:11]} 20. Nxd4 {[%emt 0:00:20]} Bd7 {[%emt 0:00:50]} 21. Qd1 {[%emt 0:00:40]} Rac8 {[%emt 0:02:41]} 22. Qd2 {[%emt 0:01:38]} Qd6 {[%emt 0:03:14]} 23. Bf3 {[%emt 0:01:41]} Kg7 {[%emt 0:17:06]} 24. g3 {[%emt 0:01:04]} h5 {[%emt 0:02:43]} 25. h4 {[%emt 0:01:38]} Qe5 {[%emt 0:04:11]} 26. Bg2 {[%emt 0:04:09]} Bg4 {[%emt 0:01:11]} 27. b3 {[%emt 0:05:59]} g5 {[%emt 0:02:58]} 28. hxg5 {[%emt 0:01:46]} fxg5 {[%emt 0:01:07]} 29. Rxc8 {[%emt 0:06:22]} Rxc8 {[%emt 0:00:07]} 30. Nf3 {[%emt 0:03:07]} Qf5 {[%emt 0:03:58]} 31. Nh2 {[%emt 0:04:42]} d4 {[%emt 0:06:25]} 32. Nxg4 {[%emt 0:07:02]} Qxg4 {[%emt 0:01:12]} 33. exd4 {[%emt 0:02:27]} Re8 {[%emt 0:02:12]} 34. Re1 {[%emt 0:02:03]} Rxe1+ {[%emt 0:00:20]} 35. Qxe1 {[%emt 0:00:03]} Qxd4 {[%emt 0:00:19]} 36. Bxb7 {[%emt 0:04:04]} Qf6 {[%emt 0:01:13]} 37. Qe2 {[%emt 0:02:16]} h4 {[%emt 0:00:43]} 38. Kg2 {[%emt 0:00:43]} hxg3 {[%emt 0:01:25]} 39. fxg3 {[%emt 0:00:23]} Kf8 {[%emt 0:00:21]} 40. Bd5 {[%emt 0:01:20]} Bd4 {[%emt 0:00:44]} 41. Qc2 {[%emt 0:01:10]} Qe5 {[%emt 0:00:45]} 42. Be4 {[%emt 0:00:32]} Qc5 {[%emt 0:00:27]} 43. Qe2 {[%emt 0:00:39]} Qe5 {[%emt 0:00:14]} 44. b4 {[%emt 0:00:43]} Ke7 {[%emt 0:00:13]} 45. Qd3 {[%emt 0:02:15]} Bb6 {[%emt 0:00:36]} 46. Qe2 {[%emt 0:01:06]} Qd4 {[%emt 0:00:28]} 47. Bf3+ {[%emt 0:00:47]} Qe3 {[%emt 0:00:09]} 48. Qxe3+ {[%emt 0:00:12]} Bxe3 {[%emt 0:00:02]} 49. Kf1 {[%emt 0:00:08]} Bd2 {[%emt 0:00:13]} 50. a3 {[%emt 0:00:25]} Bc3 {[%emt 0:00:08]} 51. Ke2 {[%emt 0:00:06]} Kd6 {[%emt 0:00:39]} 52. Kd3 {[%emt 0:00:05]} Bb2 {[%emt 0:00:01]} 53. a4 {[%emt 0:00:06]} g4 {[%emt 0:00:06]} 54. Bxg4 {[%emt 0:00:19]} Be5 {[%emt 0:00:02]} 55. Kc4 {[%emt 0:00:07]} Bxg3 {[%emt 0:00:10]} 56. Kb5 {[%emt 0:00:04]} Kc7 {[%emt 0:00:04]} 57. Ka6 {[%emt 0:00:04]} Kb8 {[%emt 0:00:01]} 58. b5 {[%emt 0:00:05]} Bf2 {[%emt 0:00:05]} 59. a5 {[%emt 0:00:02]} Bg1 {[%emt 0:00:03]} 60. b6 {[%emt 0:00:04]} Bxb6 {[%emt 0:00:04]} 61. axb6 {[%emt 0:00:03]} axb6 {[%emt 0:00:01]} 1/2-1/2

[Event "30th Abu Dhabi Festival A-Open 2024"]
[Site "Abu Dhabi"]
[Date "2024.08.19"]
[Round "4.2"]
[White "Lad Mandar Pradip"]
[Black "EYENGHE, Sunny"]
[Result "1-0"]
[ECO "E16"]
[WhiteElo "2254"]
[BlackElo "2098"]
[Annotator "RC"]
[PlyCount "89"]
[EventDate "2024.08.15"]
[EventType "swiss"]
[EventCountry "UAE"]
[SourceTitle "playchess.com"]
[Source "ChessBase"]
[SourceQuality "1"]
[TimeControl "5400+30"]

1. d4 {[%emt 0:00:33]} Nf6 {[%emt 0:01:57]} 2. c4 {[%emt 0:00:07]} e6 {[%emt 0:03:22]} 3. Nf3 {[%emt 0:00:05]} b6 {[%emt 0:00:08]} 4. g3 {[%emt 0:00:19]} Bb7 {[%emt 0:00:09]} 5. Bg2 {[%emt 0:00:06]} Bb4+ {[%emt 0:00:32]} 6. Nbd2 {[%emt 0:03:50]} Ne4 {[%emt 0:01:53]} 7. O-O {[%emt 0:00:53]} Nxd2 {[%emt 0:00:13]} 8. Bxd2 {[%emt 0:00:05]} Bxd2 {[%emt 0:00:07]} 9. Qxd2 {[%emt 0:00:03]} O-O {[%emt 0:00:09]} 10. d5 {[%emt 0:02:39]} exd5 {[%emt 0:05:45]} 11. cxd5 {[%emt 0:08:52]} d6 {[%emt 0:00:27]} 12. Rac1 {[%emt 0:01:39]} Nd7 {[%emt 0:00:42]} 13. Nd4 {[%emt 0:02:41]} a5 {[%emt 0:01:12]} 14. Qc3 {[%emt 0:14:21]} Nc5 {[%emt 0:01:12]} 15. Nf5 {[%emt 0:00:06]} Qg5 {[%emt 0:01:32]} 16. e4 {[%emt 0:04:05]} Rfe8 {[%emt 0:00:23]} 17. f3 {[%emt 0:05:47]} f6 {[%emt 0:03:50]} 18. Qd4 {[%emt 0:22:05]} Bc8 {[%emt 0:03:10]} 19. Ne3 {[%emt 0:01:33]} Qe5 {[%emt 0:01:39]} 20. Qd2 {[%emt 0:04:15]} f5 {[%emt 0:03:44]} 21. f4 {[%emt 0:05:06]} Qf6 {[%emt 0:00:29]} 22. e5 {[%emt 0:02:47]} dxe5 {[%emt 0:06:23]} 23. d6 {[%emt 0:02:45]} e4 {[%emt 0:02:05]} 24. dxc7 {[%emt 0:05:13]} Be6 {[%emt 0:00:48]} 25. Qd6 {[%emt 0:05:38]} Qxb2 {[%emt 0:20:30]} 26. g4 {[%emt 0:01:01]} fxg4 {[%emt 0:02:17]} 27. f5 {[%emt 0:00:39]} Bf7 {[%emt 0:01:23]} 28. f6 {[%emt 0:01:28]} Rac8 {[%emt 0:06:17]} 29. fxg7 {[%emt 0:01:55]} Qe5 {[%emt 0:01:02]} 30. Qxe5 {[%emt 0:04:18]} Rxe5 {[%emt 0:00:21]} 31. Nxg4 {[%emt 0:00:01]} Re6 {[%emt 0:02:48]} 32. Nf6+ {[%emt 0:00:43]} Kxg7 {[%emt 0:00:18]} 33. Bh3 {[%emt 0:00:40]} Rxc7 {[%emt 0:13:07]} 34. Bxe6 {[%emt 0:00:05]} Nxe6 {[%emt 0:00:37]} 35. Nxe4 {[%emt 0:00:07]} Re7 {[%emt 0:03:29]} 36. Ng3 {[%emt 0:01:22]} Rd7 {[%emt 0:02:30]} 37. Rc6 {[%emt 0:00:22]} Nd4 {[%emt 0:01:39]} 38. Rxb6 {[%emt 0:00:12]} Bg6 {[%emt 0:01:40]} 39. Ra6 {[%emt 0:00:59]} Rd5 {[%emt 0:00:17]} 40. h4 {[%emt 0:00:19]} Nc2 {[%emt 0:02:22]} 41. h5 {[%emt 0:00:40]} Rg5 {[%emt 0:02:39]} 42. Kh2 {[%emt 0:00:29]} Ne3 {[%emt 0:01:43]} 43. Re1 {[%emt 0:00:30]} Nf5 {[%emt 0:02:24]} 44. hxg6 {[%emt 0:01:07]} Nxg3 {[%emt 0:00:30]} 45. Re7+ {[%emt 0:00:11]} 1-0

[Event "30th Abu Dhabi Festival A-Open 2024"]
[Site "Abu Dhabi"]
[Date "2024.08.19"]
[Round "4.3"]
[White "Md Imran"]
[Black "Khachatryan, Gagik B."]
[Result "1-0"]
[ECO "D02"]
[WhiteElo "2225"]
[BlackElo "1852"]
[Annotator "RC"]
[PlyCount "115"]
[EventDate "2024.08.15"]
[EventType "swiss"]
[EventCountry "UAE"]
[SourceTitle "playchess.com"]
[Source "ChessBase"]
[SourceQuality "1"]
[TimeControl "5400+30"]

1. Nf3 {[%emt 0:00:16]} d5 {[%emt 0:00:21]} 2. d4 {[%emt 0:00:18]} Nf6 {[%emt 0:00:13]} 3. Bf4 {[%emt 0:00:05]} c5 {[%emt 0:00:52]} 4. e3 {[%emt 0:00:14]} Nc6 {[%emt 0:00:18]} 5. dxc5 {[%emt 0:00:10]} e6 {[%emt 0:00:17]} 6. c4 {[%emt 0:00:01]} Bxc5 {[%emt 0:00:54]} 7. Nc3 {[%emt 0:00:03]} O-O {[%emt 0:03:31]} 8. Be2 {[%emt 0:01:45]} dxc4 {[%emt 0:05:41]} 9. Qxd8 {[%emt 0:00:28]} Rxd8 {[%emt 0:00:08]} 10. Bxc4 {[%emt 0:00:03]} a6 {[%emt 0:00:51]} 11. Rc1 {[%emt 0:00:29]} Bd6 {[%emt 0:07:54]} 12. Bg5 {[%emt 0:01:38]} b5 {[%emt 0:02:41]} 13. Bd3 {[%emt 0:05:21]} Bb7 {[%emt 0:08:12]} 14. Ke2 {[%emt 0:01:42]} Rd7 {[%emt 0:06:10]} 15. a4 {[%emt 0:07:30]} b4 {[%emt 0:03:37]} 16. Bxf6 {[%emt 0:06:09]} gxf6 {[%emt 0:00:28]} 17. Ne4 {[%emt 0:00:05]} Be7 {[%emt 0:00:05]} 18. Nc5 {[%emt 0:03:32]} Bxc5 {[%emt 0:00:46]} 19. Rxc5 {[%emt 0:00:01]} Rad8 {[%emt 0:09:57]} 20. Rd1 {[%emt 0:06:14]} Rd5 {[%emt 0:13:40]} 21. Rxd5 {[%emt 0:02:29]} Rxd5 {[%emt 0:00:08]} 22. g4 {[%emt 0:03:40]} h5 {[%emt 0:08:39]} 23. Rg1 {[%emt 0:11:00]} Kf8 {[%emt 0:04:19]} 24. Be4 {[%emt 0:05:02]} Rc5 {[%emt 0:01:43]} 25. gxh5 {[%emt 0:00:40]} Rxh5 {[%emt 0:00:11]} 26. Rc1 {[%emt 0:02:41]} Nd4+ {[%emt 0:06:45]} 27. Nxd4 {[%emt 0:02:31]} Bxe4 {[%emt 0:00:04]} 28. Rc4 {[%emt 0:00:26]} a5 {[%emt 0:00:20]} 29. Nxe6+ {[%emt 0:00:07]} fxe6 {[%emt 0:00:01]} 30. Rxe4 {[%emt 0:00:06]} Kf7 {[%emt 0:03:06]} 31. h4 {[%emt 0:00:05]} Rc5 {[%emt 0:01:05]} 32. Kd3 {[%emt 0:00:14]} Rc1 {[%emt 0:01:38]} 33. Rc4 {[%emt 0:00:08]} Ra1 {[%emt 0:00:15]} 34. Kc2 {[%emt 0:00:47]} Rf1 {[%emt 0:00:49]} 35. f4 {[%emt 0:02:09]} Rf2+ {[%emt 0:03:45]} 36. Kb3 {[%emt 0:00:04]} Rf3 {[%emt 0:00:11]} 37. Re4 {[%emt 0:00:17]} Rf2 {[%emt 0:01:34]} 38. Rd4 {[%emt 0:00:41]} Rh2 {[%emt 0:00:39]} 39. Rd7+ {[%emt 0:00:39]} Kg6 {[%emt 0:00:31]} 40. Ra7 {[%emt 0:00:01]} Rxh4 {[%emt 0:02:24]} 41. Rxa5 {[%emt 0:00:06]} Rh3 {[%emt 0:00:07]} 42. Kxb4 {[%emt 0:00:10]} Rxe3 {[%emt 0:00:04]} 43. Rc5 {[%emt 0:00:05]} Re4+ {[%emt 0:02:21]} 44. Rc4 {[%emt 0:00:13]} Re2 {[%emt 0:00:05]} 45. Kc3 {[%emt 0:00:14]} Kf5 {[%emt 0:00:29]} 46. a5 {[%emt 0:00:07]} Re3+ {[%emt 0:00:23]} 47. Kb4 {[%emt 0:00:32]} Re2 {[%emt 0:00:04]} 48. b3 {[%emt 0:00:53]} Ra2 {[%emt 0:00:29]} 49. Kb5 {[%emt 0:00:04]} e5 {[%emt 0:00:03]} 50. fxe5 {[%emt 0:00:03]} fxe5 {[%emt 0:00:04]} 51. Rc8 {[%emt 0:00:43]} Ke6 {[%emt 0:01:03]} 52. b4 {[%emt 0:00:07]} Kd7 {[%emt 0:00:27]} 53. Rc4 {[%emt 0:00:02]} Kd6 {[%emt 0:01:16]} 54. a6 {[%emt 0:00:05]} Kd5 {[%emt 0:00:04]} 55. Rc8 {[%emt 0:00:27]} e4 {[%emt 0:00:24]} 56. Rd8+ {[%emt 0:00:06]} Ke5 {[%emt 0:00:18]} 57. Kb6 {[%emt 0:00:02]} Ra4 {[%emt 0:00:34]} 58. b5 {[%emt 0:00:13]} 1-0